fUST/lending_fUST_20260117
["ID","MTS","AMOUNT","RATE_DAILY","PERIOD"]
[402222943,1768612145130,-419.73,9.02e-05,2]
[402222944,1768612145155,-105.50816943,9.128e-05,2]
[402222952,1768612205307,-60.68009518,9.128e-05,2]
[402222953,1768612205332,-209.21092804,9.128e-05,2]
[402222954,1768612208404,-240.54574161,9.128e-05,2]
[402222955,1768612223610,215.03,8.627e-05,2]
[402222958,1768612231610,-430.07,9.038e-05,2]
[402222959,1768612231620,-98.24333035,9.128e-05,2]
[402222960,1768612231630,-645.1,9.449e-05,2]
[402222961,1768612231639,-306.58669465,9.859e-05,2]
[402222962,1768612231650,-553.54330535,9.859e-05,2]
[402222963,1768612231660,-250.0,0.00010023,2]
[402222964,1768612231669,-573.16208284,0.0001027,2]
[402223102,1768612237669,-502.00791716,0.0001027,2]
[402223103,1768612237678,-500.0,0.00010474,2]
[402223104,1768612237687,-500.0,0.00010611,2]
[402223105,1768612237699,-1290.2,0.00010681,2]
[402223106,1768612237710,-1200.0,0.00010745,2]
[402223107,1768612237719,-300.0,0.00010746,2]
[402223108,1768612237729,-300.0,0.00010746,2]
[402223109,1768612237738,-300.0,0.00010746,2]
[402223110,1768612237748,-300.0,0.00010746,2]
[402223111,1768612237758,-500.0,0.00010748,2]
[402223112,1768612237768,-500.0,0.00010748,2]
[402223113,1768612237777,-500.0,0.00010748,2]
[402223114,1768612237787,-500.0,0.00010748,2]
[402223115,1768612237796,-500.0,0.00010748,2]
[402223116,1768612237808,-500.0,0.00010748,2]
[402223117,1768612237818,-500.0,0.00010748,2]
[402223118,1768612237827,-500.0,0.00010748,2]
[402223119,1768612237836,-500.0,0.00010748,2]
[402223120,1768612237846,-500.0,0.00010748,2]
[402223121,1768612237856,-500.0,0.00010748,2]
[402223122,1768612237865,-500.0,0.00010748,2]
[402223123,1768612237875,-500.0,0.00010748,2]
[402223124,1768612237884,-500.0,0.00010748,2]
[402223125,1768612237894,-500.0,0.00010748,2]
[402223126,1768612237903,-500.0,0.00010748,2]
[402223127,1768612237913,-500.0,0.00010748,2]
[402223128,1768612237923,-489.95055912,0.00010748,2]
[402223129,1768612237933,-500.0,0.00010748,2]
[402223130,1768612237942,-500.0,0.00010748,2]
[402223131,1768612237952,-500.0,0.00010748,2]
[402223132,1768612237961,-500.0,0.00010748,2]
[402223133,1768612237971,-500.0,0.00010748,2]
[402223134,1768612237980,-500.0,0.00010748,2]
[402223135,1768612237990,-500.0,0.00010748,2]
[402223136,1768612237999,-500.0,0.00010748,2]
[402223137,1768612238009,-500.0,0.00010748,2]
[402223138,1768612238018,-266.25453486,0.00010748,2]
[402223139,1768612238029,-500.0,0.00010748,2]
[402223140,1768612238039,-500.0,0.00010748,2]
[402223141,1768612238048,-500.0,0.00010748,2]
[402223142,1768612238057,-500.0,0.00010748,2]
[402223143,1768612238067,-500.0,0.00010748,2]
[402223144,1768612238076,-500.0,0.00010748,2]
[402223145,1768612238086,-500.0,0.00010748,2]
[402223146,1768612238095,-500.0,0.00010748,2]
[402223147,1768612238105,-500.0,0.00010748,2]
[402223148,1768612238115,-500.0,0.00010748,2]
[402223149,1768612238124,-500.0,0.00010748,2]
[402223150,1768612238133,-500.0,0.00010748,2]
[402223151,1768612238142,-500.0,0.00010748,2]
[402223152,1768612238151,-500.0,0.00010748,2]
[402223153,1768612238161,-500.0,0.00010748,2]
[402223154,1768612238170,-500.0,0.00010748,2]
[402223155,1768612238180,-500.0,0.00010748,2]
[402223156,1768612238189,-500.0,0.00010748,2]
[402223157,1768612238199,-500.0,0.00010748,2]
[402223158,1768612238208,-625.29999992,0.00010748,2]
[402223159,1768612238219,-500.0,0.00010748,2]
[402223160,1768612238228,-500.0,0.00010748,2]
[402223161,1768612238238,-500.0,0.00010748,2]
[402223162,1768612238248,-500.0,0.00010748,2]
[402223163,1768612238258,-500.0,0.00010748,2]
[402223164,1768612238268,-500.0,0.00010748,2]
[402223165,1768612238277,-500.0,0.00010748,2]
[402223166,1768612238286,-500.0,0.00010748,2]
[402223167,1768612238296,-500.0,0.00010748,2]
[402223168,1768612238306,-500.0,0.00010748,2]
[402223169,1768612238315,-500.0,0.00010748,2]
[402223170,1768612238325,-412.83798808,0.00010748,2]
[402223171,1768612238334,-500.0,0.00010748,2]
[402223172,1768612238344,-500.0,0.00010748,2]
[402223173,1768612238354,-500.0,0.00010748,2]
[402223174,1768612238363,-500.0,0.00010748,2]
[402223175,1768612238373,-500.0,0.00010748,2]
[402223176,1768612238383,-500.0,0.00010748,2]
[402223177,1768612238392,-500.0,0.00010748,2]
[402223178,1768612238402,-500.0,0.00010748,2]
[402223179,1768612238412,-500.0,0.00010748,2]
[402223180,1768612238422,-500.0,0.00010748,2]
[402223181,1768612238431,-500.0,0.00010748,2]
[402223182,1768612238440,-500.0,0.00010748,2]
[402223183,1768612238450,-500.0,0.00010748,2]
[402223184,1768612238460,-500.0,0.00010748,2]
[402223185,1768612238469,-500.0,0.00010748,2]
[402223186,1768612238479,-500.0,0.00010748,2]
[402223187,1768612238488,-500.0,0.00010748,2]
[402223188,1768612238497,-500.0,0.00010748,2]
[402223189,1768612238506,-500.0,0.00010748,2]
[402223190,1768612238516,-500.0,0.00010748,2]
[402223191,1768612238525,-500.0,0.00010748,2]
[402223192,1768612238535,-500.0,0.00010748,2]
[402223193,1768612238544,-500.0,0.00010748,2]
[402223194,1768612238553,-375.70628662,0.00010748,2]
[402223195,1768612238563,-500.0,0.00010748,2]
[402223196,1768612238572,-500.0,0.00010748,2]
[402223197,1768612238582,-500.0,0.00010748,2]
[402223198,1768612238591,-500.0,0.00010748,2]
[402223199,1768612238600,-500.0,0.00010748,2]
[402223200,1768612238610,-500.0,0.00010748,2]
[402223201,1768612238620,-558.13570961,0.00010748,2]
[402223202,1768612238629,-500.0,0.00010748,2]
[402223203,1768612238638,-500.0,0.00010748,2]
[402223204,1768612238648,-500.0,0.00010748,2]
[402223205,1768612238657,-500.0,0.00010748,2]
[402223206,1768612238667,-500.0,0.00010748,2]
[402223207,1768612238676,-500.0,0.00010748,2]
[402223208,1768612238686,-500.0,0.00010748,2]
[402223209,1768612238697,-500.0,0.00010748,2]
[402223210,1768612238708,-500.0,0.00010748,2]
[402223211,1768612238718,-500.0,0.00010748,2]
[402223212,1768612238728,-500.0,0.00010748,2]
[402223213,1768612238739,-500.0,0.00010748,2]
[402223214,1768612238748,-609.18268777,0.00010748,2]
[402223215,1768612238758,-500.0,0.00010748,2]
[402223216,1768612238767,-500.0,0.00010748,2]
[402223217,1768612238777,-500.0,0.00010748,2]
[402223218,1768612238786,-500.0,0.00010748,2]
[402223219,1768612238795,-500.0,0.00010748,2]
[402223220,1768612238805,-500.0,0.00010748,2]
[402223221,1768612238814,-500.0,0.00010748,2]
[402223222,1768612238823,-500.0,0.00010748,2]
[402223223,1768612238832,-500.0,0.00010748,2]
[402223224,1768612238842,-500.0,0.00010748,2]
[402223225,1768612238851,-500.0,0.00010748,2]
[402223226,1768612238861,-500.0,0.00010748,2]
[402223227,1768612238870,-500.0,0.00010748,2]
[402223228,1768612238880,-500.0,0.00010748,2]
[402223229,1768612238890,-500.0,0.00010748,2]
[402223230,1768612238900,-500.0,0.00010748,2]
[402223231,1768612238910,-500.0,0.00010748,2]
[402223232,1768612238919,-500.0,0.00010748,2]
[402223233,1768612238929,-500.0,0.00010748,2]
[402223234,1768612238939,-500.0,0.00010748,2]
[402223235,1768612238950,-500.0,0.00010748,2]
[402223236,1768612238960,-500.0,0.00010748,2]
[402223237,1768612238970,-500.0,0.00010748,2]
[402223238,1768612238979,-500.0,0.00010748,2]
[402223239,1768612238989,-500.0,0.00010748,2]
[402223240,1768612238999,-500.0,0.00010748,2]
[402223241,1768612239008,-500.0,0.00010748,2]
[402223242,1768612239019,-500.0,0.00010748,2]
[402223243,1768612239029,-500.0,0.00010748,2]
[402223244,1768612239039,-500.0,0.00010748,2]
[402223245,1768612239048,-500.0,0.00010748,2]
[402223246,1768612239057,-500.0,0.00010748,2]
[402223247,1768612239067,-500.0,0.00010748,2]
[402223248,1768612239076,-500.0,0.00010748,2]
[402223249,1768612239086,-500.0,0.00010748,2]
[402223250,1768612239095,-500.0,0.00010748,2]
[402223251,1768612239105,-500.0,0.00010748,2]
[402223252,1768612239115,-500.0,0.00010748,2]
[402223253,1768612239124,-500.0,0.00010748,2]
[402223254,1768612239134,-500.0,0.00010748,2]
[402223255,1768612239143,-500.0,0.00010748,2]
[402223256,1768612239153,-500.0,0.00010748,2]
[402223257,1768612239163,-500.0,0.00010748,2]
[402223258,1768612239172,-500.0,0.00010748,2]
[402223259,1768612239181,-500.0,0.00010748,2]
[402223260,1768612239191,-500.0,0.00010748,2]
[402223261,1768612239200,-500.0,0.00010748,2]
[402223262,1768612239210,-500.0,0.00010748,2]
[402223263,1768612239220,-500.0,0.00010748,2]
[402223264,1768612239231,-500.0,0.00010748,2]
[402223265,1768612239240,-400.0,0.00010748,2]
[402223266,1768612239250,-500.0,0.00010748,2]
[402223267,1768612239260,-500.0,0.00010748,2]
[402223268,1768612239269,-491.75121683,0.00010748,2]
[402223269,1768612239278,-151.88,0.00010748,2]
[402223270,1768612239287,-500.0,0.00010748,2]
[402223271,1768612239297,-500.0,0.00010749,2]
[402223272,1768612239306,-500.0,0.00010749,2]
[402223273,1768612239316,-412.72158515,0.00010749,2]
[402223274,1768612239325,-600.48344184,0.00010749,2]
[402223275,1768612239335,-10000.0,0.0001075,2]
[402223276,1768612239344,-2000.0,0.00010941,2]
[402223277,1768612239354,-2000.0,0.0001095,2]
[402223278,1768612239364,-930.7616984,0.00010959,2]
[402223279,1768612239373,-380.4103011,0.00010959,2]
[402223280,1768612239383,-2000.0,0.00010959,2]
[402223281,1768612239392,-151.89,0.00011022,2]
[402223282,1768612239401,-500.0,0.00011022,2]
[402223283,1768612239410,-1505.23,0.00011092,2]
[402223284,1768612239420,-392.76881892,0.00011128,2]
[402223285,1768612239430,-500.0,0.00011296,2]
[402223286,1768612239440,-1720.27,0.00011503,2]
[402223287,1768612239449,-500.0,0.0001157,2]
[402223288,1768612239459,-483.39,0.00011721,2]
[402223289,1768612239468,-300.0,0.00011812,2]
[402223290,1768612239478,-300.0,0.00011812,2]
[402223291,1768612239487,-420.0,0.00011812,2]
[402223292,1768612239497,-420.0,0.00011812,2]
[402223293,1768612239506,-1680.0,0.0001182,2]
[402223294,1768612239515,-500.0,0.00011844,2]
[402223295,1768612239525,-1935.3,0.00011913,2]
[402223296,1768612239534,-500.0,0.00012118,2]
[402223297,1768612239543,-2150.33,0.00012324,2]
[402223299,1768612239552,-1406.71,0.00012329,2]
[402223301,1768612239563,-1172.26,0.00012329,2]
[402223303,1768612239580,-976.88,0.00012329,2]
[402223305,1768612239593,-814.07,0.00012329,2]
[402223307,1768612239602,-678.39,0.00012329,2]
[402223309,1768612239611,-565.33,0.00012329,2]
[402223311,1768612239620,-471.1,0.00012329,2]
[402223313,1768612239629,-392.59,0.00012329,2]
[402223315,1768612239638,-330.9459275,0.00012329,2]
[402223317,1768612239647,-500.0,0.00012392,2]
[402223319,1768612239656,-500.0,0.00012666,2]
[402223321,1768612239665,-151.0,0.000127,2]
[402223322,1768612239674,-4539.28279456,0.00012883,2]
[402223323,1768612239683,-151.0,0.000129,2]
[402223324,1768612239692,-7283.2901644,0.000129,2]
[402223325,1768612239704,-7283.2901644,0.000129,2]
[402223326,1768612239713,-4539.28279454,0.00012905,2]
[402223327,1768612239721,-4539.28279454,0.00012928,2]
[402223328,1768612239731,-500.0,0.0001294,2]
[402223329,1768612239740,-4539.28279454,0.0001295,2]
[402223330,1768612239749,-4539.28279454,0.00012972,2]
[402223331,1768612239757,-587.0,0.00012983,2]
[402223332,1768612239766,-587.0,0.00012983,2]
[402223333,1768612239775,-2351.0,0.00013001,2]
[402223334,1768612239784,-151.0,0.000131,2]
[402223335,1768612239793,-151.0,0.000131,2]
[402223336,1768612239804,-151.0,0.000131,2]
[402223337,1768612239814,-151.0,0.000131,2]
[402223338,1768612239823,-151.0,0.000131,2]
[402223339,1768612239832,-151.0,0.000131,2]
[402223340,1768612239841,-151.0,0.000131,2]
[402223341,1768612239850,-151.0,0.000131,2]
[402223342,1768612239859,-151.0,0.000131,2]
[402223343,1768612239868,-151.0,0.000131,2]
[402223344,1768612239877,-452.68270656,0.00013128,2]
[402223345,1768612239887,-500.0,0.00013214,2]
[402223347,1768612239896,-500.0,0.00013273,2]
[402223349,1768612239905,-500.0,0.00013273,2]
[402223351,1768612239915,-500.0,0.00013273,2]
[402223353,1768612239924,-500.0,0.00013273,2]
[402223355,1768612239934,-500.0,0.00013273,2]
[402223358,1768612239944,-524.62460419,0.00013273,2]
[402223360,1768612239954,-500.0,0.00013273,2]
[402223362,1768612239964,-500.0,0.00013273,2]
[402223363,1768612239973,-500.0,0.00013273,2]
[402223366,1768612239983,-500.0,0.00013273,2]
[402223367,1768612239992,-500.0,0.00013273,2]
[402223370,1768612240002,-500.0,0.00013273,2]
[402223373,1768612240012,-500.0,0.00013273,2]
[402223375,1768612240021,-424.18434606,0.00013273,2]
[402223377,1768612240031,-500.0,0.00013273,2]
[402223379,1768612240040,-500.0,0.00013273,2]
[402223381,1768612240049,-500.0,0.00013273,2]
[402223383,1768612240058,-500.0,0.00013273,2]
[402223385,1768612240067,-500.0,0.00013273,2]
[402223387,1768612240076,-500.0,0.00013273,2]
[402223389,1768612240085,-500.0,0.00013273,2]
[402223391,1768612240094,-500.0,0.00013273,2]
[402223393,1768612240103,-440.24648614,0.00013273,2]
[402223395,1768612240112,-500.0,0.00013273,2]
[402223397,1768612240121,-500.0,0.00013273,2]
[402223398,1768612240131,-500.0,0.00013424,2]
[402223400,1768612240140,-573.0,0.00013424,2]
[402223402,1768612240150,-500.0,0.00013424,2]
[402223405,1768612240161,-286.5314506,0.00013488,2]
[402223407,1768612240170,-500.0,0.00013561,2]
[402223408,1768612240179,-573.0,0.00013561,2]
[402223411,1768612240189,-500.0,0.00013561,2]
[402223412,1768612240201,-397.87367922,0.00013673,2]
[402223414,1768612240211,-300.0,0.00013673,2]
[402223417,1768612240220,-500.0,0.00013698,2]
[402223419,1768612240229,-573.0,0.00013698,2]
[402223421,1768612240238,-256.00368609,0.00013698,2]
[402223423,1768612240248,-500.0,0.00013698,2]
[402223425,1768612240257,-500.0,0.00013698,2]
[402223427,1768612240266,-500.0,0.00013698,2]
[402223429,1768612240275,-500.0,0.00013698,2]
[402223431,1768612240284,-500.0,0.00013698,2]
[402223433,1768612240293,-500.0,0.00013698,2]
[402223435,1768612240301,-500.0,0.00013698,2]
[402223437,1768612240310,-500.0,0.00013698,2]
[402223438,1768612240320,-500.0,0.00013698,2]
[402223440,1768612240329,-500.0,0.00013698,2]
[402223442,1768612240338,-574.36929825,0.00013698,2]
[402223445,1768612240347,-1626.75,0.00013698,2]
[402223447,1768612240356,-1626.75,0.00013698,2]
[402223449,1768612240366,-1626.75,0.00013698,2]
[402223451,1768612240375,-1626.75,0.00013698,2]
[402223453,1768612240384,-1626.75,0.00013698,2]
[402223455,1768612240393,-1626.75,0.00013698,2]
[402223457,1768612240403,-1626.75,0.00013698,2]
[402223459,1768612240412,-1626.75,0.00013698,2]
[402223461,1768612240422,-1626.75,0.00013698,2]
[402223463,1768612240432,-1626.75,0.00013698,2]
[402223465,1768612240441,-1626.75,0.00013698,2]
[402223467,1768612240450,-1626.75,0.00013698,2]
[402223469,1768612240460,-1626.75,0.00013698,2]
[402223471,1768612240469,-1626.75,0.00013698,2]
[402223473,1768612240478,-1626.75,0.00013698,2]
[402223475,1768612240487,-1626.75,0.00013698,2]
[402223477,1768612240496,-1626.75,0.00013698,2]
[402223479,1768612240506,-1626.75,0.00013698,2]
[402223481,1768612240515,-1626.75,0.00013698,2]
[402223483,1768612240524,-1626.75,0.00013698,2]
[402223485,1768612240533,-1626.75,0.00013698,2]
[402223487,1768612240542,-1626.75,0.00013698,2]
[402223489,1768612240551,-1626.75,0.00013698,2]
[402223491,1768612240559,-1626.82309236,0.00013698,2]
[402223493,1768612240568,-500.0,0.00013698,2]
[402223495,1768612240577,-500.0,0.00013698,2]
[402223497,1768612240586,-500.0,0.00013698,2]
[402223499,1768612240595,-500.0,0.00013698,2]
[402223501,1768612240604,-500.0,0.00013698,2]
[402223503,1768612240614,-283.56730347,0.00013698,2]
[402223505,1768612240626,-502.82609084,0.00013698,2]
[402223507,1768612240635,-500.0,0.00013698,2]
[402223510,1768612240644,-500.0,0.00013698,2]
[402223511,1768612240653,-500.0,0.00013698,2]
[402223512,1768612240662,-500.0,0.00013698,2]
[402223513,1768612240671,-500.0,0.00013698,2]
[402223514,1768612240680,-500.0,0.00013698,2]
[402223516,1768612240689,-500.0,0.00013698,2]
[402223517,1768612240699,-213.5987473,0.00013698,2]
[402223518,1768612240710,-500.0,0.00013698,2]
[402223520,1768612240719,-500.0,0.00013698,2]
[402223522,1768612240728,-500.0,0.00013698,2]
[402223524,1768612240737,-500.0,0.00013698,2]
[402223526,1768612240746,-500.0,0.00013698,2]
[402223554,1768612240984,-500.0,0.00013698,2]
[402223556,1768612240994,-500.0,0.00013698,2]
[402223558,1768612241003,-500.0,0.00013698,2]
[402223560,1768612241012,-500.0,0.00013698,2]
[402223562,1768612241021,-500.0,0.00013698,2]
[402223563,1768612241031,-500.0,0.00013698,2]
[402223564,1768612241041,-500.0,0.00013698,2]
[402223565,1768612241051,-500.0,0.00013698,2]
[402223566,1768612241059,-582.50112986,0.00013698,2]
[402223567,1768612241068,-500.0,0.00013698,2]
[402223568,1768612241077,-500.0,0.00013698,2]
[402223569,1768612241086,-644.33926137,0.00013698,2]
[402223570,1768612241095,-520.28730821,0.00013698,2]
[402223571,1768612241104,-500.0,0.00013698,2]
[402223572,1768612241113,-500.0,0.00013698,2]
[402223573,1768612241123,-500.0,0.00013698,2]
[402223574,1768612241132,-500.0,0.00013698,2]
[402223575,1768612241141,-500.0,0.00013698,2]
[402223576,1768612241150,-500.0,0.00013698,2]
[402223577,1768612241159,-500.0,0.00013698,2]
[402223578,1768612241169,-500.0,0.00013698,2]
[402223579,1768612241178,-500.0,0.00013698,2]
[402223580,1768612241188,-500.0,0.00013698,2]
[402223581,1768612241197,-500.0,0.00013698,2]
[402223582,1768612241207,-500.0,0.00013698,2]
[402223583,1768612241216,-500.0,0.00013698,2]
[402223584,1768612241225,-500.0,0.00013698,2]
[402223585,1768612241235,-500.0,0.00013698,2]
[402223586,1768612241244,-500.0,0.00013698,2]
[402223587,1768612241253,-500.0,0.00013698,2]
[402223588,1768612241262,-500.0,0.00013698,2]
[402223589,1768612241271,-500.0,0.00013698,2]
[402223590,1768612241280,-500.0,0.00013698,2]
[402223591,1768612241289,-500.0,0.00013698,2]
[402223592,1768612241298,-500.0,0.00013698,2]
[402223593,1768612241307,-611.38007014,0.00013698,2]
[402223594,1768612241316,-567.72559682,0.00013698,2]
[402223595,1768612241325,-505.79259852,0.00013698,2]
[402223596,1768612241335,-500.0,0.00013698,2]
[402223597,1768612241344,-500.0,0.00013698,2]
[402223598,1768612241352,-500.0,0.00013698,2]
[402223599,1768612241361,-500.0,0.00013698,2]
[402223600,1768612241375,-500.0,0.00013698,2]
[402223601,1768612241384,-500.0,0.00013698,2]
[402223602,1768612241392,-500.0,0.00013698,2]
[402223603,1768612241401,-500.0,0.00013698,2]
[402223604,1768612241409,-500.0,0.00013698,2]
[402223605,1768612241418,-500.0,0.00013698,2]
[402223606,1768612241427,-500.0,0.00013698,2]
[402223607,1768612241436,-559.52204836,0.00013698,2]
[402223608,1768612241445,-1000.0,0.00013698,2]
[402223609,1768612241454,-1000.0,0.00013698,2]
[402223610,1768612241463,-1000.0,0.00013698,2]
[402223611,1768612241472,-1000.0,0.00013698,2]
[402223612,1768612241480,-1000.0,0.00013698,2]
[402223613,1768612241489,-1000.0,0.00013698,2]
[402223614,1768612241501,-1000.0,0.00013698,2]
[402223615,1768612241510,-1019.17213815,0.00013698,2]
[402223616,1768612241519,-1000.0,0.00013699,2]
[402223617,1768612241528,-185.222293,0.00013699,2]
[402223618,1768612241537,-500.0,0.00013699,2]
[402223619,1768612241547,-500.0,0.00013699,2]
[402223620,1768612241556,-500.0,0.00013699,2]
[402223621,1768612241565,-500.0,0.00013699,2]
[402223622,1768612241575,-500.0,0.00013699,2]
[402223623,1768612241585,-500.0,0.00013699,2]
[402223624,1768612241594,-500.0,0.00013699,2]
[402223625,1768612241603,-500.0,0.00013699,2]
[402223626,1768612241612,-308.86248808,0.00013699,2]
[402223627,1768612241621,-500.0,0.00013699,2]
[402223628,1768612241630,-501.82620036,0.00013699,2]
[402223629,1768612241640,-500.0,0.00013699,2]
[402223630,1768612241648,-622.93942038,0.00013699,2]
[402223631,1768612241657,-500.0,0.00013699,2]
[402223632,1768612241667,-500.0,0.00013699,2]
[402223633,1768612241676,-500.0,0.00013699,2]
[402223634,1768612241685,-500.0,0.00013699,2]
[402223635,1768612241694,-500.0,0.00013699,2]
[402223636,1768612241706,-500.0,0.00013699,2]
[402223637,1768612241715,-250.52997418,0.00013699,2]
[402223638,1768612241724,-502.61209366,0.00013699,2]
[402223639,1768612241733,-500.0,0.00013699,2]
[402223640,1768612241742,-500.0,0.00013699,2]
[402223641,1768612241751,-500.0,0.00013699,2]
[402223642,1768612241760,-192.79463249,0.00013699,2]
[402223643,1768612241768,-10000.0,0.00013803,2]
[402223644,1768612241778,-1308.98,0.00013803,2]
[402223645,1768612241790,-1000.0,0.00013821,2]
[402223646,1768612241799,-1000.0,0.00013821,2]
[402223647,1768612241809,-1004.15629489,0.00013821,2]
[402223648,1768612241818,-1000.0,0.00013821,2]
[402223649,1768612241827,-453.71259255,0.00013821,2]
[402223650,1768612241836,-1000.0,0.00013821,2]
[402223651,1768612241845,-1000.0,0.00013821,2]
[402223653,1768612241855,-172.90141714,0.00013821,2]
[402223654,1768612241864,-998.42292613,0.00013821,2]
[402223656,1768612241873,-502.83955258,0.00013821,2]
[402223658,1768612241882,-500.0,0.00013821,2]
[402223660,1768612241891,-500.0,0.00013835,2]
[402223662,1768612241900,-573.0,0.00013835,2]
[402223664,1768612241909,-500.0,0.00013835,2]
[402223666,1768612241918,-500.0,0.0001389,2]
[402223668,1768612241927,-500.0,0.00013972,2]
[402223670,1768612241937,-573.0,0.00013972,2]
[402223672,1768612241945,-500.0,0.00013972,2]
[402223674,1768612241954,-500.0,0.00014027,2]
[402223676,1768612241964,-500.0,0.00014109,2]
[402223678,1768612241973,-203.57088388,0.00014109,2]
[402223680,1768612241983,-204.18892172,0.00014109,2]
[402223682,1768612241992,-573.0,0.00014109,2]
[402223684,1768612242001,-500.0,0.00014109,2]
[402223686,1768612242010,-212.54773642,0.00014151,2]
[402223688,1768612242021,-100000.0,0.00014152,2]
[402223690,1768612242030,-466.5089198,0.00014164,2]
[402223692,1768612242039,-600.0,0.00014221,2]
[402223694,1768612242048,-500.0,0.00014246,2]
[402223696,1768612242057,-573.0,0.00014246,2]
[402223698,1768612242066,-500.0,0.00014246,2]
[402223700,1768612242075,-310.63775509,0.00014247,2]
[402223703,1768612242085,-1000.0,0.00014247,2]
[402223705,1768612242094,-194.1362209,0.00014247,2]
[402223707,1768612242104,-1000.0,0.00014247,2]
[402223709,1768612242113,-431.73453214,0.00014247,2]
[402223711,1768612242122,-250.0,0.00014247,2]
[402223712,1768612242133,-505.35037186,0.00014247,2]
[402223714,1768612242142,-1000.0,0.00014247,2]
[402223716,1768612242151,-920.73215922,0.00014247,2]
[402223718,1768612242160,-505.85156425,0.00014247,2]
[402223720,1768612242169,-1000.0,0.00014247,2]
[402223722,1768612242177,-1002.84499725,0.00014247,2]
[402223724,1768612242186,-1000.0,0.00014247,2]
[402223728,1768612242196,-500.43334725,0.00014247,2]
[402223731,1768612242205,-500.0,0.00014247,2]
[402223735,1768612242214,-502.90945713,0.00014247,2]
[402223739,1768612242223,-1097.74982003,0.00014247,2]
[402223740,1768612242232,-1000.0,0.00014247,2]
[402223744,1768612242242,-823.0,0.00014271,2]
[402223746,1768612242251,-241.0,0.00014271,2]
[402223748,1768612242260,-3292.0,0.00014302,2]
[402223750,1768612242268,-500.0,0.00014368,2]
[402223752,1768612242277,-500.0,0.00014368,2]
[402223754,1768612242286,-1500.0,0.00014368,2]
[402223756,1768612242295,-500.85139614,0.00014368,2]
[402223759,1768612242304,-500.0,0.00014368,2]
[402223762,1768612242312,-500.0,0.00014383,2]
[402223764,1768612242322,-573.0,0.00014383,2]
[402223766,1768612242330,-500.0,0.00014383,2]
[402223768,1768612242339,-150.74696944,0.00014438,2]
[402223770,1768612242348,-1957.856,0.00014444,2]
[402223772,1768612242357,-30000.0,0.00014444,2]
[402223776,1768612242366,-25135.28153252,0.00014444,2]
[402223780,1768612242377,-2030.296672,0.00014499,2]
[402223782,1768612242387,-5000.0,0.0001451,2]
[402223784,1768612242396,-446.52910925,0.0001452,2]
[402223786,1768612242406,-573.0,0.0001452,2]
[402223788,1768612242415,-500.0,0.0001452,2]
[402223790,1768612242424,-2105.41764886,0.00014554,2]
[402223792,1768612242433,-180.0285874,0.00014575,2]
[402223794,1768612242442,-2183.31810187,0.00014609,2]
[402223796,1768612242452,-573.0,0.00014657,2]
[402223798,1768612242461,-500.0,0.00014657,2]
[402223800,1768612242470,-2264.10087164,0.00014664,2]
[402223802,1768612242479,-158.0,0.000147,2]